bitfinex-derivatives/quotes_ETHF0:USTF0_20251031
["timestamp","ask_amount","ask_price","bid_price","bid_amount"]
[1761909078745,1.22028177,3836.8,3836.7,3.9788]
[1761909079345,0.88268177,3836.8,3836.7,3.9788]
[1761909079845,0.65788177,3836.8,3836.7,3.9788]
[1761909081341,0.00299369,3836.8,3836.7,5.3857183]
[1761909081647,0.5649,3837.5,3837.4,0.7884]
[1761909081845,1.21969493,3837.5,3837.4,0.7884]
[1761909082649,1.22257257,3837.5,3837.4,0.7884]
[1761909083550,0.88497257,3837.5,3837.4,0.7884]
[1761909084444,1.22257257,3837.5,3837.4,0.7884]
[1761909085346,0.08437277,3837.5,3837.4,0.7884]
[1761909085744,0.65692669,3837.5,3837.4,0.7884]
[1761909086042,0.65692669,3837.5,3837.4,41.5884]
[1761909086244,0.57543156,3837.5,3837.4,41.5884]
[1761909086645,0.57543156,3837.5,3837.4,50.6404]
[1761909086853,0.00287764,3837.5,3837.4,50.6404]
[1761909089251,0.23017764,3837.5,3837.4,41.5884]
[1761909089456,0.78347764,3837.5,3837.4,41.5884]
[1761909089656,0.78347764,3837.5,3837.4,50.6394]
[1761909091554,0.22627764,3837.5,3837.4,50.6394]
[1761909092153,0.56697764,3837.5,3837.4,50.6394]
[1761909094260,0.22627764,3837.5,3837.4,50.6394]
[1761909095465,0.56697764,3837.5,3837.4,50.6394]
[1761909096665,0.22627764,3837.5,3837.4,50.6394]
[1761909096862,0.00287764,3837.5,3837.4,50.6394]
[1761909099666,0.93597764,3837.5,3837.4,41.3588]
[1761909099872,0.93597764,3837.5,3837.1,3.2078]
[1761909099873,0.7909,3837.3,3837.2,0.548]
[1761909100073,0.8723953,3837.3,3837.2,0.548]
[1761909100271,0.8723953,3837.3,3837.2,0.7647]
[1761909100566,0.56697764,3837.5,3837.4,0.7647]
[1761909100767,1.21808168,3837.5,3837.4,0.7647]
[1761909101073,1.44488168,3837.5,3837.4,0.7647]
[1761909102073,1.58478168,3837.5,3837.4,0.548]
[1761909102274,0.7919,3837.3,3837.2,40.8]
[1761909102474,0.87339155,3837.3,3837.2,41.1399]
[1761909103268,1.44312022,3837.3,3837.2,41.1399]
[1761909112281,0.65122022,3837.3,3837.2,41.1399]
[1761909114782,0.56972867,3837.3,3837.2,41.1399]
[1761909114989,0.00287764,3837.5,3837.4,0.7892]
[1761909115180,0.08437052,3837.5,3837.4,0.7892]
[1761909115376,0.65445167,3837.5,3837.4,0.7892]
[1761909116288,1.44635167,3837.5,3837.4,0.5725]
[1761909116480,0.7919,3837.2,3837.1,3.6571]
[1761909116680,1.44347403,3837.2,3837.1,3.6571]
[1761909116881,1.44347403,3837.2,3837.1,3.997]
[1761909117081,1.44347403,3837.2,3837.1,0.7892]
[1761909118589,1.09877403,3837.2,3837.1,0.7892]
[1761909119685,1.44347403,3837.2,3837.1,0.7892]
[1761909120390,1.36198115,3837.2,3837.1,0.7892]
[1761909120592,1.44347752,3837.2,3837.1,0.7892]
[1761909120894,1.44347752,3837.2,3837.1,0.5725]
[1761909122089,0.4472,3836.8,3836.7,3.4404]
[1761909122390,0.87339637,3836.8,3836.7,0.2326]
[1761909122589,1.44369211,3836.8,3836.7,0.5725]
[1761909122796,0.7919,3836.4,3836.3,3.5477]
[1761909122994,1.44360298,3836.4,3836.3,0.3399]
[1761909123192,1.44360298,3836.4,3836.3,0.5725]
[1761909129199,0.9241,3836.0,3835.9,3.2078]
[1761909129402,0.7919,3835.9,3835.8,0.34295669]
[1761909129601,0.3447,3836.3,3835.9,0.3399]
[1761909129904,0.3447,3836.3,3836.2,0.7892]
[1761909129905,0.2222,3836.3,3836.2,0.7892]
[1761909130105,0.64841999,3836.3,3836.2,0.7892]
[1761909130310,0.2222,3836.3,3836.2,0.7892]
[1761909130514,0.5669,3836.3,3836.2,0.7892]
[1761909131415,0.5403,3836.6,3836.5,0.9229]
[1761909131614,0.843119,3836.6,3836.5,0.9229]
[1761909131816,1.41262176,3836.6,3836.5,0.9229]
[1761909132019,1.41262176,3836.6,3836.5,0.7853]
[1761909133012,1.41262176,3836.6,3836.5,0.5688]
[1761909133208,0.5403,3836.1,3836.0,0.5858]
[1761909133607,0.5403,3836.1,3836.0,0.9242]
[1761909133813,0.5403,3836.1,3836.0,41.7242]
[1761909134316,0.5403,3836.1,3836.0,0.9242]
[1761909134921,0.7616,3836.1,3836.0,0.7853]
[1761909135717,0.7616,3836.1,3836.0,0.9229]
[1761909136623,0.7616,3836.1,3836.0,0.5688]
[1761909137917,3.2078,3836.3,3835.8,0.57275669]
[1761909137918,0.8066,3835.9,3835.8,0.57275669]
[1761909140521,0.8066,3835.9,3835.8,0.00305669]
[1761909142726,1.45717657,3835.9,3835.8,0.00305669]
[1761909143426,1.45717657,3835.9,3835.1,0.5697]
[1761909143427,0.8066,3835.2,3835.1,0.5697]
[1761909143622,0.8066,3835.5,3835.4,0.7888]
[1761909144527,0.3549,3835.4,3835.2,0.5697]
[1761909144824,0.2328,3835.3,3835.2,0.45471538]
[1761909145222,0.5877,3835.3,3835.2,0.79181538]
[1761909145419,0.8066,3835.3,3835.2,0.79181538]
[1761909146935,0.8066,3835.3,3835.2,0.57271538]
[1761909151228,0.88814143,3835.3,3835.2,0.57271538]
[1761909151629,1.45723342,3835.3,3835.2,0.57271538]
[1761909152430,1.45723342,3835.3,3835.2,0.00301538]
[1761909154030,1.45723342,3835.3,3835.2,0.34011538]
[1761909155230,1.45723342,3835.3,3835.2,0.57271538]
[1761909155839,1.45723342,3835.3,3835.2,0.00301538]
[1761909157238,1.45723342,3835.3,3835.2,0.34011538]
[1761909157834,1.45723342,3835.3,3835.2,0.00301538]
[1761909158444,1.66126638,3835.3,3835.2,0.00301538]
[1761909158640,0.8066,3834.3,3834.2,3.4404]
[1761909158835,0.8066,3834.3,3834.2,3.6595]
[1761909159137,0.3549,3834.2,3833.7,3.4404]
[1761909159344,0.8066,3833.9,3833.8,0.4517]
[1761909159537,0.80982935,3833.9,3833.8,0.45508882]
[1761909159843,0.80982935,3833.9,3833.8,0.79218882]
[1761909160335,0.80982935,3833.9,3833.8,0.00338882]
[1761909161345,0.80982935,3833.9,3833.8,0.33318882]
[1761909161542,0.80982935,3833.9,3833.8,0.00338882]
[1761909166550,0.23602935,3833.9,3833.8,0.77188882]
[1761909167049,0.57052935,3833.9,3833.8,0.77188882]
[1761909167445,0.79892935,3833.9,3833.8,0.00338882]
[1761909167653,1.44809184,3833.9,3833.8,0.00338882]
[1761909168150,0.88050386,3833.9,3833.8,0.00338882]
[1761909168552,0.88050386,3833.9,3833.8,0.33318882]
[1761909168749,0.88050386,3833.9,3833.8,0.55568882]
[1761909169750,0.88050386,3833.9,3833.8,0.00338882]
[1761909171459,0.88050386,3833.9,3833.8,0.55568882]
[1761909172857,0.88050386,3833.9,3833.8,0.00338882]
[1761909173953,0.88050386,3833.9,3833.8,0.55568882]
[1761909174155,1.44833143,3833.9,3833.8,0.55568882]
[1761909174352,0.88050386,3833.9,3833.8,0.55568882]
[1761909174558,0.88050386,3833.9,3833.8,0.77188882]
[1761909174752,0.31760386,3833.9,3833.8,3.97968882]
[1761909174949,0.00322935,3833.9,3833.8,3.97968882]
[1761909175152,0.23612935,3833.9,3833.8,3.97968882]
[1761909176758,0.79902935,3833.9,3833.8,0.77188882]
[1761909177061,0.79902935,3833.9,3833.8,0.00338882]
[1761909177359,0.57062935,3833.9,3833.8,0.77188882]
[1761909177560,0.79902935,3833.9,3833.8,0.77188882]
[1761909180063,0.46452935,3833.9,3833.8,0.77188882]
[1761909180258,0.23612935,3833.9,3833.8,3.97968882]
[1761909180465,0.4737,3833.5,3833.4,3.2078]
[1761909181466,0.4737,3833.5,3833.4,44.00988515]
[1761909182861,0.3345,3833.7,3833.4,44.00988515]
[1761909183066,0.3345,3833.7,3833.5,0.32877]
[1761909183366,0.3345,3833.7,3833.4,44.33865515]
[1761909185661,0.3345,3833.7,3833.4,44.00988515]
[1761909187065,0.3345,3833.7,3833.4,45.41718103]
[1761909187467,0.3345,3833.7,3833.4,45.74595103]
[1761909187968,0.33772935,3833.9,3833.4,45.74595103]
[1761909188168,0.00322935,3833.9,3833.5,1.40729588]
[1761909188668,0.33772935,3833.9,3833.5,1.40729588]
[1761909189058,0.00322935,3833.9,3833.5,1.40729588]
[1761909189263,0.00322935,3833.9,3833.6,1.40729588]
[1761909190059,0.00322935,3833.9,3833.8,4.94383588]
[1761909190262,0.00322935,3833.9,3833.8,12.58454]
[1761909190471,0.00322935,3833.9,3833.8,20.58454]
[1761909190865,0.00322935,3833.9,3833.8,21.51174]
[1761909191270,0.00322935,3833.9,3833.8,21.183]
[1761909191465,0.00322935,3833.9,3833.8,22.58888932]
[1761909193070,0.00322935,3833.9,3833.8,21.183]
[1761909193470,0.00322935,3833.9,3833.8,22.58833013]
[1761909194866,0.00322935,3833.9,3833.8,14.58833013]
[1761909195469,0.65262935,3833.9,3833.8,13.182]
[1761909195965,0.00322935,3833.9,3833.8,13.182]
[1761909196368,0.00322935,3833.9,3833.8,13.51074]
[1761909196569,0.00322935,3833.9,3833.8,13.182]
[1761909198176,0.00322935,3833.9,3833.8,3.7797]
[1761909198177,1.26562935,3833.9,3833.8,3.7797]
[1761909202580,1.26562935,3833.9,3833.8,4.1054]
[1761909202779,1.26562935,3833.9,3833.8,3.7797]
[1761909204882,1.26562935,3833.9,3833.8,4.1054]
[1761909205479,1.26562935,3833.9,3833.8,13.1524]
[1761909205875,1.26562935,3833.9,3833.8,12.8267]
[1761909206081,1.26562935,3833.9,3833.8,9.6189]
[1761909210680,0.8036,3833.6,3833.5,0.6514]
[1761909210886,0.88516465,3833.6,3833.5,9.6984]
[1761909211280,1.52086465,3833.6,3833.5,10.0241]
[1761909211681,1.52086465,3833.6,3833.5,9.6984]
[1761909211881,1.52086465,3833.6,3833.5,10.0241]
[1761909212185,1.52086465,3833.6,3833.5,0.3257]
[1761909212385,1.52086465,3833.6,3833.5,9.6984]
[1761909212688,1.12966465,3833.6,3833.5,10.0241]
[1761909212883,0.6357,3833.6,3833.5,10.0241]
[1761909214689,3.62342935,3833.9,3833.8,0.9771]
[1761909214890,4.66689526,3833.9,3833.8,0.6514]
[1761909215283,5.30259526,3833.9,3833.8,0.6514]
[1761909218491,2.09479526,3833.9,3833.8,0.6514]
[1761909219687,2.09479102,3833.9,3833.8,0.6514]
[1761909220493,1.4393,3833.6,3833.5,4.1849]
[1761909222395,1.4393,3833.6,3833.5,0.9771]
[1761909222785,0.00322935,3833.9,3833.8,0.6951]
[1761909223192,0.08479506,3833.9,3833.8,0.6951]
[1761909223387,0.67109506,3833.9,3833.8,0.6951]
[1761909223596,0.58952935,3833.9,3833.8,0.6951]
[1761909224101,0.98042935,3833.9,3833.8,0.6951]
[1761909224306,1.06199455,3833.9,3833.8,0.6951]
[1761909224507,1.63289012,3833.9,3833.8,0.4634]
[1761909225608,1.99039012,3833.9,3833.8,0.4634]
[1761909226103,1.3347,3833.8,3833.7,9.047]
[1761909226304,1.4162652,3833.8,3833.7,9.5104]
[1761909226900,1.4162652,3833.8,3833.7,50.3104]
[1761909229604,1.98754883,3833.8,3833.7,50.3104]
[1761909229803,1.98754883,3833.8,3833.4,1.63911528]
[1761909229804,1.5748,3833.5,3833.4,0.23378515]
[1761909230009,1.5748,3833.5,3833.4,0.46548515]
[1761909230313,1.5748,3833.5,3833.4,0.00208515]
[1761909230314,2.22761503,3833.5,3833.4,0.00208515]
[1761909232308,5.43541503,3833.5,3833.4,0.00208515]
[1761909234407,5.43541503,3833.5,3832.8,0.1031]
[1761909234408,1.3347,3832.9,3832.8,0.1031]
[1761909234612,1.98698044,3832.9,3832.8,0.1031]
[1761909235307,1.98698044,3832.9,3832.8,0.10628598]
[1761909240111,1.90540848,3832.9,3832.8,0.10628598]
[1761909240317,1.9870024,3832.9,3832.8,0.34008598]
[1761909240516,0.9772,3832.9,3832.8,0.80768598]
[1761909241117,0.9772,3832.9,3832.8,41.60768598]
[1761909241311,0.9772,3832.9,3832.8,0.80768598]
[1761909241511,0.5863,3832.9,3832.8,0.80768598]
[1761909241818,0.5863,3833.0,3832.9,0.4676]
[1761909242014,0.5863,3833.0,3832.9,0.7014]
[1761909243614,0.8264,3833.0,3832.9,0.7014]
[1761909244322,1.2173,3833.0,3832.9,0.7014]
[1761909245220,1.2173,3833.0,3832.9,41.5014]
[1761909245422,1.2173,3833.0,3832.9,41.2676]
[1761909246612,1.2173,3833.0,3832.9,50.3136]
[1761909248116,1.2173,3833.0,3832.9,50.5474]
[1761909249125,1.2173,3833.0,3832.9,50.3136]
[1761909249324,1.2173,3833.0,3832.9,9.5136]
[1761909249625,1.5748,3833.0,3832.9,9.5136]
[1761909250024,1.5748,3833.0,3832.9,0.4676]
[1761909250324,1.5748,3833.0,3832.9,9.5136]
[1761909251124,1.2303,3832.9,3832.8,9.15228598]
[1761909251714,1.2303,3832.9,3832.8,49.95228598]
[1761909255116,1.2303,3832.9,3832.8,40.90628598]
[1761909257225,1.2303,3832.9,3832.8,0.10628598]
[1761909257625,1.2303,3832.9,3832.8,0.22668598]
[1761909257828,1.2303,3832.9,3832.8,0.32578598]
[1761909258422,1.2303,3832.9,3832.8,0.20538598]
[1761909259230,1.2303,3832.9,3832.8,0.30448598]
[1761909259932,1.31188628,3832.9,3832.8,0.30448598]
[1761909260120,1.31188628,3832.9,3832.8,0.20538598]
[1761909260325,1.88384456,3832.9,3832.8,0.10628598]
[1761909271043,1.88384456,3832.9,3832.8,0.30448598]
[1761909272135,1.88384456,3832.9,3832.8,0.20538598]
[1761909272335,5.09164456,3832.9,3832.8,0.10628598]
[1761909272531,1.88384456,3832.9,3832.8,0.10628598]
[1761909273240,1.88384456,3832.9,3832.8,0.20538598]
[1761909275343,1.88384456,3832.9,3832.8,0.10628598]
[1761909278952,1.88384917,3832.9,3832.8,0.10628598]
[1761909279951,5.09164917,3832.9,3832.8,0.10628598]
[1761909295046,5.09165416,3832.9,3832.8,0.10628598]
[1761909301757,1.106,3832.2,3831.8,1.40533013]
[1761909301963,1.106,3831.8,3831.7,10.48333013]
[1761909302159,1.106,3831.8,3831.7,1.42333013]
[1761909302360,1.106,3831.4,3831.3,40.8]
[1761909302864,1.106,3831.4,3831.3,40.80299459]
[1761909304066,0.1895,3832.0,3831.9,0.054]
[1761909304252,0.8248,3832.0,3831.8,9.042]
[1761909304459,0.6353,3831.9,3831.8,9.06]
[1761909304659,1.106,3831.9,3831.8,9.078]
[1761909304961,0.4707,3831.9,3831.8,9.096]
[1761909306365,0.7913,3831.9,3831.8,9.078]
[1761909306573,1.106,3831.9,3831.8,9.078]
[1761909308569,1.106,3831.9,3831.8,9.042]
[1761909308960,1.106,3831.6,3831.5,1.4435772]
[1761909309266,1.106,3831.6,3831.5,0.018]
[1761909309867,1.106,3831.4,3831.3,40.80299459]
[1761909310170,1.106,3831.4,3831.3,0.00299459]
[1761909310383,1.106,3831.4,3831.3,0.02099459]
[1761909310566,0.4707,3831.4,3831.3,0.05699459]
[1761909311169,0.4707,3831.4,3831.3,0.03899459]
[1761909311470,0.7818,3831.4,3831.3,0.03899459]
[1761909313565,1.0738,3831.4,3831.3,0.03899459]
[1761909314570,1.0738,3831.4,3831.3,0.00299459]
[1761909316573,1.15541947,3831.4,3831.3,0.00299459]
[1761909316974,1.0738,3831.4,3831.3,0.00299459]
[1761909321272,0.4707,3831.4,3831.3,0.00299459]
[1761909321582,0.4217,3831.7,3831.3,9.04499459]
[1761909321769,0.4217,3831.7,3831.6,3.2078]
[1761909321970,0.4217,3831.9,3831.6,12.57873]
[1761909322170,0.4217,3831.9,3831.6,12.2498]
[1761909322677,0.4217,3831.9,3831.6,13.6573772]
[1761909323580,0.4217,3831.9,3831.7,0.32891]
[1761909323771,0.6112,3832.0,3831.9,0.3289]
[1761909324080,0.4217,3832.3,3831.9,9.3709]
[1761909324378,0.4217,3832.3,3832.2,3.2078]
[1761909324570,0.4217,3832.3,3832.2,12.2498]
[1761909325474,0.982,3832.3,3832.2,9.042]
[1761909325671,0.982,3832.1,3832.0,49.841]
[1761909325975,0.4217,3832.1,3832.0,53.0488]
[1761909326574,0.7098,3832.1,3832.0,53.0488]
[1761909327482,0.4217,3832.1,3832.0,53.0488]
[1761909329488,0.982,3832.1,3832.0,49.841]
[1761909330584,0.982,3832.1,3832.0,40.8]
[1761909330885,0.982,3832.1,3832.0,49.84]
[1761909331079,0.982,3832.1,3832.0,40.8]
[1761909332681,0.4217,3832.1,3832.0,40.8]
[1761909334480,0.7098,3832.1,3832.0,40.8]
[1761909336586,0.982,3832.1,3832.0,40.8]
[1761909344390,0.7098,3832.1,3832.0,40.8]
[1761909346390,0.383,3832.4,3832.0,40.8]
[1761909347192,0.383,3832.3,3832.0,40.8]
[1761909349688,0.383,3832.3,3832.1,0.32889]
[1761909349889,0.383,3832.3,3832.2,9.039]
[1761909353694,0.5725,3832.5,3832.2,9.36788]
[1761909353895,0.5725,3832.5,3832.4,1.40893087]
[1761909354198,0.383,3832.7,3832.4,1.40858024]
[1761909354401,0.383,3832.7,3832.5,9.038]
[1761909354593,0.383,3832.7,3832.5,9.24709615]
[1761909355294,0.383,3832.7,3832.5,9.038]
[1761909358904,0.6446,3832.7,3832.5,9.038]
[1761909359100,0.383,3832.6,3832.5,9.038]
[1761909363408,0.383,3832.6,3832.5,12.2458]
[1761909363607,0.2401,3833.0,3832.5,12.2458]
[1761909363608,0.383,3832.9,3832.5,12.2458]
[1761909364006,0.383,3832.9,3832.7,0.32883]
[1761909364206,0.383,3833.2,3832.8,10.44458024]
[1761909364810,0.383,3833.2,3833.0,0.32881]
[1761909365010,0.383,3833.2,3833.1,9.036]
[1761909365914,0.6446,3833.2,3833.1,9.036]
[1761909366310,0.894,3833.2,3832.9,44.0078]
[1761909366513,1.0626,3833.0,3832.9,44.0078]
[1761909366712,0.8132,3833.0,3832.9,53.0438]
[1761909367214,0.5516,3833.0,3832.9,53.0438]
[1761909367812,0.511,3832.7,3832.5,1.40858024]
[1761909368112,0.1686,3833.0,3832.3,3.2078]
[1761909368113,0.5516,3832.5,3832.4,1.40858024]
[1761909368307,0.8132,3832.5,3832.4,42.20858024]
[1761909368506,0.8132,3832.5,3832.4,40.8]
[1761909369219,0.5516,3832.5,3832.4,49.835]
[1761909371021,0.5516,3832.5,3832.4,40.8]
[1761909371222,1.044,3832.5,3832.4,40.8]
[1761909371417,0.8236,3832.4,3832.3,3.2078]
[1761909371919,0.4792,3832.0,3831.9,3.2078]
[1761909372223,0.9697,3832.0,3831.9,3.2078]
[1761909376816,0.5928,3831.7,3831.6,49.835]
[1761909377224,0.8236,3831.4,3831.3,0.00299459]
[1761909388330,0.4589,3830.4,3830.3,40.8]
[1761909388534,0.7905,3830.4,3830.3,40.8]
[1761909388832,0.5562,3830.4,3830.3,40.8]
[1761909389225,0.7905,3830.4,3830.3,40.8]
[1761909389431,0.79250367,3830.4,3830.3,40.8031927]
[1761909390235,0.79250367,3830.4,3830.3,0.0031927]
[1761909390438,0.79250367,3830.4,3829.8,3.2078]
[1761909390732,0.7905,3829.8,3829.7,0.45577435]
[1761909391644,0.7905,3829.8,3829.7,0.45800545]
[1761909395434,0.3316,3829.8,3829.7,0.45800545]
[1761909395641,0.1369,3830.0,3829.7,0.45800545]
[1761909395642,0.3316,3829.9,3829.7,0.45800545]
[1761909395836,0.3316,3829.9,3829.7,9.49600545]
[1761909396036,0.3316,3829.9,3829.8,3.2078]
[1761909396434,0.5562,3829.9,3829.8,3.2078]
[1761909396842,0.3316,3829.9,3829.8,3.2078]
[1761909398838,0.7905,3829.9,3829.8,3.2078]
[1761909399641,0.3316,3829.8,3829.7,0.45800545]
[1761909399846,0.5562,3829.8,3829.7,0.45800545]
[1761909401145,0.7905,3829.8,3829.7,0.45800545]
[1761909406644,0.3316,3829.8,3829.7,0.45800545]
[1761909406843,0.5636,3829.8,3829.7,0.45800545]
[1761909407046,0.3316,3829.8,3829.7,0.45800545]
[1761909408348,0.5636,3829.8,3829.7,0.45800545]
[1761909408751,0.3316,3829.8,3829.7,0.45800545]
[1761909414851,0.3316,3829.8,3829.7,0.78709545]
[1761909416350,0.3382,3829.9,3829.7,0.78709545]
[1761909416559,0.3382,3829.9,3829.8,12.2478]
[1761909417251,0.3382,3829.9,3829.8,13.65638024]
[1761909417556,0.3382,3829.9,3829.8,12.2478]
[1761909417751,0.3382,3830.2,3829.8,12.2478]
[1761909418061,0.00200367,3830.4,3830.2,0.32905]
[1761909418359,0.00200367,3830.4,3830.3,49.84]
[1761909419958,0.34020367,3830.4,3830.3,49.84]
[1761909420360,0.3382,3830.8,3830.4,0.32903]
[1761909420655,0.3382,3830.8,3830.7,1.40724398]
[1761909420846,0.3382,3830.9,3830.7,9.369]
[1761909421047,0.3382,3830.9,3830.8,1.40718503]
[1761909421248,0.34147801,3830.9,3830.8,42.20718503]
[1761909421451,0.00327801,3830.9,3830.8,42.20718503]
[1761909421660,0.00327801,3830.9,3830.8,40.8]
[1761909422960,0.4843,3831.5,3831.2,0.32896]
[1761909423161,0.4843,3831.5,3831.4,3.53675]
[1761909423460,0.4843,3831.5,3831.4,12.57675]
[1761909423660,0.4843,3831.5,3831.4,12.2478]
[1761909423961,0.48729453,3831.5,3831.4,53.0478]
[1761909424252,0.48729453,3831.5,3831.4,53.37675]
[1761909424459,0.00299453,3831.5,3831.4,53.37675]
[1761909425059,0.00299453,3831.5,3831.4,53.58420374]
[1761909425260,0.00299453,3831.5,3831.4,54.98603842]
[1761909425452,0.34119453,3831.5,3831.4,54.98603842]
[1761909426160,0.47209453,3831.5,3831.4,54.98603842]
[1761909426462,0.47209453,3831.5,3831.4,53.0478]
[1761909426668,0.93659453,3831.5,3831.4,53.0458]
[1761909427258,0.70409453,3831.5,3831.4,53.0458]
[1761909428060,0.47209453,3831.5,3831.4,53.37475]
[1761909428260,0.47209453,3831.5,3831.4,53.0458]
[1761909429760,0.70409453,3831.5,3831.4,53.0458]
[1761909429956,0.47209453,3831.5,3831.4,53.0458]
[1761909430661,0.70409453,3831.5,3831.4,53.0458]
[1761909430862,0.47209453,3831.5,3831.4,53.0458]
[1761909432062,0.69909453,3831.5,3831.4,44.0078]
[1761909432364,0.69909453,3831.5,3831.4,53.0448]
[1761909432665,0.47209453,3831.5,3831.4,53.0448]
[1761909436667,0.69909453,3831.5,3831.4,53.0448]
[1761909437968,0.47209453,3831.5,3831.4,53.0448]
[1761909440572,0.00299453,3831.5,3831.4,53.0448]
[1761909440766,0.34179453,3831.5,3831.4,53.0448]
[1761909440968,0.00299453,3831.5,3831.4,53.0448]
[1761909441570,0.34179453,3831.5,3831.4,53.0448]
[1761909442275,0.48009453,3831.5,3831.4,53.0448]
[1761909442575,0.93479453,3831.5,3831.4,53.0438]
[1761909443575,0.48009453,3831.5,3831.4,44.0078]
[1761909443772,0.48009453,3831.5,3831.4,53.0438]
[1761909445478,0.93479453,3831.5,3831.4,53.0438]
[1761909446576,0.93479453,3831.5,3831.4,44.0078]
[1761909446776,0.93479453,3831.5,3831.4,53.0438]
[1761909449180,0.93479453,3831.5,3831.4,49.836]
[1761909449376,0.93479453,3831.5,3831.4,51.23783468]
[1761909451979,0.93479453,3831.5,3831.4,49.836]
[1761909452183,0.93479453,3831.5,3831.4,53.0438]
[1761909456980,0.93479453,3831.5,3830.9,1.85194342]
[1761909456981,0.9318,3831.0,3830.9,1.85194342]
[1761909457187,0.4547,3830.8,3830.7,9.036]
[1761909457386,0.3555,3831.0,3830.7,9.036]
[1761909457583,0.3388,3830.9,3830.7,9.036]
[1761909458174,0.3388,3830.8,3830.7,9.036]
[1761909458887,0.556,3830.8,3830.7,9.036]
[1761909459885,0.7935,3830.8,3830.7,9.036]
[1761909461786,0.556,3830.8,3830.7,9.036]
[1761909464789,0.3388,3830.8,3830.7,9.036]
[1761909467293,0.5649,3830.8,3830.7,9.036]
[1761909467495,0.7984,3830.7,3830.6,3.2078]
[1761909467688,0.7984,3830.7,3830.6,12.2448]
[1761909467893,0.7984,3830.7,3830.6,3.2078]
[1761909468293,0.9372,3830.5,3830.4,40.8]
[1761909469695,0.9372,3830.5,3830.4,49.837]
[1761909472794,0.4944,3830.5,3830.4,49.837]
[1761909481311,0.9372,3830.5,3830.4,40.8]
[1761909481518,0.7984,3830.4,3830.3,12.2458]
[1761909482013,0.7984,3830.4,3830.3,3.2078]
[1761909482210,0.7984,3830.4,3830.3,12.2458]
[1761909482713,0.7984,3830.4,3830.3,3.2078]
[1761909482914,0.7984,3830.4,3830.3,12.2458]
[1761909483614,0.7205,3830.0,3829.9,44.0078]
[1761909483912,0.9372,3830.0,3829.9,53.0458]
[1761909484712,0.9372,3830.0,3829.9,44.0078]
[1761909484907,0.7984,3829.8,3829.7,0.45800545]
[1761909485113,0.7984,3829.8,3829.7,9.49600545]
[1761909487511,0.7984,3829.8,3829.7,0.45800545]
[1761909490425,0.88005764,3829.8,3829.7,0.45800545]
[1761909491229,0.7984,3829.8,3829.7,0.45800545]
[1761909492823,0.3556,3829.8,3829.7,0.45800545]
[1761909494520,0.4843,3830.0,3829.7,9.49800545]
[1761909495025,0.3455,3829.9,3829.7,9.49800545]
[1761909495722,0.3455,3830.2,3829.7,10.90266909]
[1761909496024,0.3455,3830.2,3830.0,3.2078]
[1761909496324,0.3455,3830.2,3830.1,40.8]
[1761909499325,0.8011,3830.2,3830.1,40.8]
[1761909499523,0.4492,3830.1,3830.0,3.2078]
[1761909499726,0.7735,3830.1,3830.0,3.2078]
[1761909500320,0.7735,3829.8,3829.7,0.45800545]
[1761909501827,0.85515634,3829.8,3829.7,0.45800545]
[1761909502133,0.7735,3829.8,3829.7,0.45800545]
[1761909506429,0.2316,3828.8,3828.7,0.2323]
[1761909506628,0.3243,3828.8,3828.7,0.768]
[1761909506831,0.3243,3828.8,3828.7,41.568]
[1761909507420,0.32657801,3828.8,3828.7,41.57050929]
[1761909507633,0.00227801,3828.8,3828.7,41.57050929]
[1761909509139,0.00227801,3828.8,3828.7,44.77830929]
[1761909509335,0.00227801,3828.8,3828.7,46.18297293]
[1761909509640,0.4606,3829.5,3829.4,0.768]
[1761909509833,0.2176,3829.2,3829.1,0.768]
[1761909510436,0.54407153,3829.2,3829.1,0.768]
[1761909511236,0.00217153,3829.2,3829.1,0.768]
[1761909511436,3.2078,3829.7,3829.6,0.2323]
[1761909511640,0.3243,3829.8,3829.7,0.768]
[1761909512329,0.7735,3829.8,3829.7,0.2323]
[1761909512531,0.77619283,3829.8,3829.7,0.2323]
[1761909513033,0.9098,3829.5,3829.4,0.2323]
[1761909513234,0.22029283,3829.8,3829.7,0.4521]
[1761909513536,0.22029283,3829.8,3829.7,0.768]
[1761909513935,0.54459283,3829.8,3829.7,0.768]
[1761909514441,0.00269283,3829.8,3829.7,0.768]
[1761909514935,0.54459283,3829.8,3829.7,0.4521]
[1761909515133,0.00269283,3829.8,3829.7,0.768]
[1761909516439,0.77619283,3829.8,3829.7,0.4521]
[1761909516736,0.54459283,3829.8,3829.7,0.768]
[1761909517839,0.23429283,3829.8,3829.7,0.4521]
[1761909518140,0.00269283,3829.8,3829.7,0.768]
[1761909518342,0.32699283,3829.8,3829.7,0.768]
[1761909518536,0.54459283,3829.8,3829.7,0.768]
[1761909519844,0.00269283,3829.8,3829.7,0.768]
[1761909522343,0.00269283,3829.8,3829.7,41.568]
[1761909523242,3.4426,3830.9,3830.8,0.769]
[1761909523438,3.4426,3830.9,3830.8,0.4529]
[1761909523439,3.6676,3830.9,3830.8,0.4529]
[1761909523833,3.9918,3830.9,3830.8,0.4529]
[1761909524230,3.99408857,3830.9,3830.8,0.4529]
[1761909524635,3.76908857,3830.9,3830.8,0.769]
[1761909528151,3.21008857,3830.9,3830.8,0.769]
[1761909529844,0.00228857,3830.9,3830.8,0.769]
[1761909530343,0.4605,3831.5,3831.4,0.769]
[1761909530544,0.3242,3831.5,3831.4,0.769]
[1761909531551,0.32735526,3831.5,3831.4,0.77138697]
[1761909531741,0.56215526,3831.5,3831.4,0.77138697]
[1761909531941,0.91645526,3831.5,3831.4,0.45528697]
[1761909533353,0.91645526,3831.5,3831.4,0.00238697]
[1761909541048,0.225,3830.5,3830.4,3.2078]
[1761909541355,0.4598,3830.2,3830.1,0.769]
[1761909541556,0.784,3830.2,3830.1,0.769]
[1761909541955,0.3242,3830.2,3830.1,0.77094796]
[1761909542457,0.3641,3830.5,3830.4,0.769]